Workbook

Sheet Pro-Forma Income Statement
B3: Pro-Forma Income Statement
B4: XYZ, Inc.
B5: For 2006 through 2009
B6: (all numbers in $000)
B9: REVENUE | D9: 2006 | E9: =D9+1 -> 2007 | F9: =E9+1 -> 2008 | G9: =F9+1 -> 2009
B10: Gross sales | D10: $500 | E10: $650 | F10: $720 | G10: $850
C11: Less sales returns and allowances | D11: 200 | E11: 230 | F11: 280 | G11: 320
B12: Net Sales | D12: =IF(OR(D10<>0,D11),D10-D11,"") -> $300 | E12: =IF(OR(E10<>0,E11),E10-E11,"") -> $420 | F12: =IF(OR(F10<>0,F11),F10-F11,"") -> $440 | G12: =IF(OR(G10<>0,G11),G10-G11,"") -> $530
B14: COST OF SALES
B15: Beginning inventory | D15: $350 | E15: =IF(D18,D18,"") -> $360 | F15: =IF(E18,E18,"") -> $420 | G15: =IF(F18,F18,"") -> $435
C16: Plus goods purchased / manufactured | D16: 120 | E16: 165 | F16: 185 | G16: 190
B17: Total Goods Available | D17: =IF(OR(SUM(D15)<>0,D16),D15+D16,"") -> $470 | E17: =IF(OR(SUM(E15)<>0,E16),E15+E16,"") -> $525 | F17: =IF(OR(SUM(F15)<>0,F16),F15+F16,"") -> $605 | G17: =IF(OR(SUM(G15)<>0,G16),G15+G16,"") -> $625
C18: Less ending inventory | D18: 360 | E18: 420 | F18: 435 | G18: 440
B19: Total Cost of Goods Sold | D19: =IF(OR(SUM(D17)<>0,D18),D17-D18,"") -> $110 | E19: =IF(OR(SUM(E17)<>0,E18),E17-E18,"") -> $105 | F19: =IF(OR(SUM(F17)<>0,F18),F17-F18,"") -> $170 | G19: =IF(OR(SUM(G17)<>0,G18),G17-G18,"") -> $185
B21: Gross Profit (Loss) | D21: =IF(OR(SUM(D12)<>0,SUM(D19)),SUM(D12)-SUM(D19),"") -> $190 | E21: =IF(OR(SUM(E12)<>0,SUM(E19)),SUM(E12)-SUM(E19),"") -> $315 | F21: =IF(OR(SUM(F12)<>0,SUM(F19)),SUM(F12)-SUM(F19),"") -> $270 | G21: =IF(OR(SUM(G12)<>0,SUM(G19)),SUM(G12)-SUM(G19),"") -> $345
B23: OPERATING EXPENSES
B24: Selling
C25: Salaries and wages | D25: $35 | E25: $41 | F25: $46 | G25: $52
C26: Commissions | D26: 12 | E26: 14 | F26: 16 | G26: 18
C27: Advertising | D27: 10 | E27: 12 | F27: 14 | G27: 20
C28: Depreciation | D28: 14 | E28: 15 | F28: 16 | G28: 16
C29: Other | D29: 5 | E29: 6 | F29: 6 | G29: 7
B30: Total Selling Expenses | D30: =IF(SUM(D25:D29),SUM(D25:D29),"") -> $76 | E30: =IF(SUM(E25:E29),SUM(E25:E29),"") -> $88 | F30: =IF(SUM(F25:F29),SUM(F25:F29),"") -> $98 | G30: =IF(SUM(G25:G29),SUM(G25:G29),"") -> $113
B32: General/Administrative
C33: Salaries and wages | D33: $12 | E33: $14 | F33: $16 | G33: $18
C34: Employee benefits | D34: 4 | E34: 5 | F34: 5 | G34: 6
C35: Payroll taxes | D35: 2 | E35: 3 | F35: 3 | G35: 4
C36: Insurance | D36: 6 | E36: 6 | F36: 7 | G36: 7
C37: Rent | D37: 8 | E37: 8 | F37: 9 | G37: 9
C38: Utilities | D38: 2 | E38: 2 | F38: 2 | G38: 3
C39: Depreciation & amortization | D39: 3 | E39: 4 | F39: 4 | G39: 5
C40: Office supplies | D40: 1 | E40: 1 | F40: 1 | G40: 1
C41: Travel & entertainment | D41: 3 | E41: 3 | F41: 3 | G41: 4
C42: Postage | D42: 1 | E42: 1 | F42: 1 | G42: 2
C43: Equipment maintenance & rental | D43: 0 | E43: 0 | F43: 1 | G43: 1
C44: Interest | D44: 0 | E44: 1 | F44: 1 | G44: 2
C45: Furniture & equipment | D45: 3 | E45: 4 | F45: 4 | G45: 5
B46: Total General/Administrative Expenses | D46: =IF(SUM(D33:D45),SUM(D33:D45),"") -> $45 | E46: =IF(SUM(E33:E45),SUM(E33:E45),"") -> $52 | F46: =IF(SUM(F33:F45),SUM(F33:F45),"") -> $57 | G46: =IF(SUM(G33:G45),SUM(G33:G45),"") -> $67
B48: Total Operating Expenses | D48: =IF(OR(SUM(D30)<>0,SUM(D46)),SUM(D30)+SUM(D46),"") -> $121 | E48: =IF(OR(SUM(E30)<>0,SUM(E46)),SUM(E30)+SUM(E46),"") -> $140 | F48: =IF(OR(SUM(F30)<>0,SUM(F46)),SUM(F30)+SUM(F46),"") -> $155 | G48: =IF(OR(SUM(G30)<>0,SUM(G46)),SUM(G30)+SUM(G46),"") -> $180
B51: Net Income Before Taxes | D51: =IF(OR(SUM(D21)<>0,D48),SUM(D21)-SUM(D48),"") -> $69 | E51: =IF(OR(SUM(E21)<>0,E48),SUM(E21)-SUM(E48),"") -> $175 | F51: =IF(OR(SUM(F21)<>0,F48),SUM(F21)-SUM(F48),"") -> $115 | G51: =IF(OR(SUM(G21)<>0,G48),SUM(G21)-SUM(G48),"") -> $165
C52: Taxes on income | D52: 22 | E52: 32 | F52: 26 | G52: 28
B53: Net Income After Taxes | D53: =IF(OR(SUM(D51)<>0,D52),D51-D52,"") -> $47 | E53: =IF(OR(SUM(E51)<>0,E52),E51-E52,"") -> $143 | F53: =IF(OR(SUM(F51)<>0,F52),F51-F52,"") -> $89 | G53: =IF(OR(SUM(G51)<>0,G52),G51-G52,"") -> $137
B55: Extraordinary gain or loss | D55: $0 | E55: $0 | F55: $43 | G55: $0
B56: Income tax on extraordinary gain | D56: 0 | E56: 0 | F56: 12 | G56: 0
B58: NET INCOME (LOSS) | D58: =IF(OR(OR(SUM(D53)<>0,D55),D56),D53+D55-D56,"") -> $47 | E58: =IF(OR(OR(SUM(E53)<>0,E55),E56),E53+E55-E56,"") -> $143 | F58: =IF(OR(OR(SUM(F53)<>0,F55),F56),F53+F55-F56,"") -> $120 | G58: =IF(OR(OR(SUM(G53)<>0,G55),G56),G53+G55-G56,"") -> $137
